[Event "Early-Titled-Tuesday-Blitz-March-19-2024"]
[Site "Chess.com"]
[Date "2024.03.19"]
[Round "11"]
[White "ajeale2"]
[Black "campochess"]
[Result "1-0"]
[WhiteElo "2450"]
[BlackElo "2203"]
[TimeControl "180+1"]
[EndTime "10:05:58 PDT"]
[Termination "ajeale2 won by resignation"]

1. e4 {[%clk 0:03:00.9]} 1... c5 {[%clk 0:00:59.8]} 2. Nc3 {[%clk 0:02:57.8]}
2... Nc6 {[%clk 0:00:59.8]} 3. g3 {[%clk 0:02:56.8]} 3... e6 {[%clk 0:00:59.2]}
4. Bg2 {[%clk 0:02:57.3]} 4... Nge7 {[%clk 0:00:59.2]} 5. Nge2 {[%clk
0:02:55.1]} 5... d5 {[%clk 0:00:59.3]} 6. d3 {[%clk 0:02:51.2]} 6... d4 {[%clk
0:00:58.5]} 7. Nb1 {[%clk 0:02:47.9]} 7... e5 {[%clk 0:00:58.6]} 8. O-O {[%clk
0:02:47.2]} 8... f6 {[%clk 0:00:58.4]} 9. Nd2 {[%clk 0:02:39.7]} 9... g6 {[%clk
0:00:58.5]} 10. f4 {[%clk 0:02:38.1]} 10... Bg7 {[%clk 0:00:58.5]} 11. a4 {[%clk
0:02:20.3]} 11... O-O {[%clk 0:00:57.3]} 12. Nc4 {[%clk 0:02:18.2]} 12... b6
{[%clk 0:00:56.1]} 13. fxe5 {[%clk 0:02:12]} 13... Nxe5 {[%clk 0:00:54.5]} 14.
Nf4 {[%clk 0:01:26.1]} 14... Bg4 {[%clk 0:00:52.8]} 15. Qe1 {[%clk 0:01:21.2]}
15... g5 {[%clk 0:00:52.7]} 16. Nd5 {[%clk 0:01:05.2]} 16... Nxd5 {[%clk
0:00:51.4]} 17. exd5 {[%clk 0:01:04.4]} 17... Rc8 {[%clk 0:00:48]} 18. Nxe5
{[%clk 0:00:44.3]} 18... fxe5 {[%clk 0:00:47.1]} 19. Rxf8+ {[%clk 0:00:43.3]}
19... Qxf8 {[%clk 0:00:47.1]} 20. Bxg5 {[%clk 0:00:40.4]} 20... Qd6 {[%clk
0:00:45]} 21. Qe4 {[%clk 0:00:37.8]} 21... Bh5 {[%clk 0:00:42.4]} 22. Bh3 {[%clk
0:00:35.8]} 22... Bg6 {[%clk 0:00:40.7]} 23. Qh4 {[%clk 0:00:28.3]} 23... Rf8
{[%clk 0:00:40]} 24. Be6+ {[%clk 0:00:28]} 24... Bf7 {[%clk 0:00:37.8]} 25. Be7
{[%clk 0:00:20.3]} 25... Qxe6 {[%clk 0:00:33]} 26. dxe6 {[%clk 0:00:19.6]} 26...
Bxe6 {[%clk 0:00:26.8]} 27. Bxf8 {[%clk 0:00:19.7]} 27... Bxf8 {[%clk
0:00:26.6]} 28. Rf1 {[%clk 0:00:18.9]} 28... e4 {[%clk 0:00:19.9]} 29. Rxf8+
{[%clk 0:00:16.3]} 29... Kxf8 {[%clk 0:00:18.6]} 30. Qf6+ {[%clk 0:00:16.3]}
30... Bf7 {[%clk 0:00:18.4]} 31. dxe4 {[%clk 0:00:16.7]} 31... c4 {[%clk
0:00:17.9]} 32. Qxd4 {[%clk 0:00:15]} 32... c3 {[%clk 0:00:15.1]} 33. bxc3
{[%clk 0:00:14.6]} 1-0

[Event "Early-Titled-Tuesday-Blitz-March-19-2024"]
[Site "Chess.com"]
[Date "2024.03.19"]
[Round "11"]
[White "lluiss"]
[Black "balack95"]
[Result "0-1"]
[WhiteElo "2242"]
[BlackElo "2466"]
[TimeControl "180+1"]
[EndTime "10:05:59 PDT"]
[Termination "balack95 won on time"]

1. Nf3 {[%clk 0:03:00.9]} 1... d5 {[%clk 0:03:00]} 2. d4 {[%clk 0:03:00]} 2...
Nf6 {[%clk 0:02:56.8]} 3. c4 {[%clk 0:02:59.7]} 3... e6 {[%clk 0:02:55.9]} 4.
cxd5 {[%clk 0:02:59.6]} 4... exd5 {[%clk 0:02:56.1]} 5. Nc3 {[%clk 0:03:00.2]}
5... h6 {[%clk 0:02:55.2]} 6. Bf4 {[%clk 0:02:58.8]} 6... Bd6 {[%clk 0:02:55.3]}
7. Bxd6 {[%clk 0:02:54.8]} 7... Qxd6 {[%clk 0:02:56.2]} 8. e3 {[%clk 0:02:54.1]}
8... c6 {[%clk 0:02:54.9]} 9. Be2 {[%clk 0:02:54]} 9... O-O {[%clk 0:02:54]} 10.
O-O {[%clk 0:02:53.9]} 10... Bf5 {[%clk 0:02:54.4]} 11. Ne5 {[%clk 0:02:45]}
11... Nbd7 {[%clk 0:02:53.9]} 12. Nxd7 {[%clk 0:02:39.3]} 12... Qxd7 {[%clk
0:02:49.2]} 13. b4 {[%clk 0:02:38.7]} 13... a6 {[%clk 0:02:48.3]} 14. Na4 {[%clk
0:02:36.9]} 14... Rae8 {[%clk 0:02:47.6]} 15. Nc5 {[%clk 0:02:36.3]} 15... Qc8
{[%clk 0:02:47.4]} 16. a4 {[%clk 0:02:34.5]} 16... Ne4 {[%clk 0:02:48]} 17. Rc1
{[%clk 0:02:27]} 17... Nxc5 {[%clk 0:02:47.5]} 18. Rxc5 {[%clk 0:02:25.9]} 18...
Re6 {[%clk 0:02:38]} 19. Qb3 {[%clk 0:02:19.1]} 19... Rg6 {[%clk 0:02:35]} 20.
g3 {[%clk 0:02:09.5]} 20... Bg4 {[%clk 0:02:32]} 21. Bd3 {[%clk 0:02:05.3]}
21... Bf3 {[%clk 0:02:28.6]} 22. Rfc1 {[%clk 0:02:03.4]} 22... Re8 {[%clk
0:02:11.2]} 23. b5 {[%clk 0:02:01.9]} 23... axb5 {[%clk 0:02:02.8]} 24. axb5
{[%clk 0:02:01.9]} 24... Qh3 {[%clk 0:01:45.7]} 25. Bf1 {[%clk 0:01:59.2]} 25...
Qd7 {[%clk 0:01:42.4]} 26. bxc6 {[%clk 0:01:41.6]} 26... bxc6 {[%clk 0:01:42.4]}
27. Qb6 {[%clk 0:01:38.7]} 27... Ree6 {[%clk 0:01:38.4]} 28. Bd3 {[%clk
0:01:29]} 28... Be4 {[%clk 0:01:29.7]} 29. Be2 {[%clk 0:01:11.5]} 29... Rgf6
{[%clk 0:01:24.8]} 30. Bg4 {[%clk 0:01:01.1]} 30... Bf3 {[%clk 0:01:22]} 31. Bh3
{[%clk 0:00:55]} 31... g5 {[%clk 0:01:12.3]} 32. Bf1 {[%clk 0:00:08.9]} 32...
Kg7 {[%clk 0:01:11]} 33. Qb8 {[%clk 0:00:07.6]} 33... Re8 {[%clk 0:01:09.6]} 34.
Qb6 {[%clk 0:00:06.3]} 34... Ree6 {[%clk 0:01:04.4]} 35. Ra1 {[%clk 0:00:06.1]}
35... h5 {[%clk 0:01:03.3]} 36. Ra8 {[%clk 0:00:05.4]} 36... Re8 {[%clk
0:01:02.7]} 37. Ra7 {[%clk 0:00:04.7]} 37... Qf5 {[%clk 0:00:59.9]} 38. Rxc6
{[%clk 0:00:02.8]} 38... Ree6 {[%clk 0:00:49.4]} 39. Rxe6 {[%clk 0:00:02.2]}
39... Rxe6 {[%clk 0:00:50.3]} 40. Qb2 {[%clk 0:00:01.3]} 40... h4 {[%clk
0:00:48.1]} 0-1

[Event "Early-Titled-Tuesday-Blitz-March-19-2024"]
[Site "Chess.com"]
[Date "2024.03.19"]
[Round "11"]
[White "Gabix_94"]
[Black "MKlose11"]
[Result "0-1"]
[WhiteElo "2738"]
[BlackElo "2625"]
[TimeControl "180+1"]
[EndTime "10:06:02 PDT"]
[Termination "MKlose11 won by checkmate"]

1. d4 {[%clk 0:03:00.9]} 1... Nf6 {[%clk 0:02:53.8]} 2. Nc3 {[%clk 0:02:59.8]}
2... d5 {[%clk 0:02:49.1]} 3. Bf4 {[%clk 0:02:59.9]} 3... c5 {[%clk 0:02:48.6]}
4. e3 {[%clk 0:02:55.6]} 4... e6 {[%clk 0:02:43.9]} 5. Nb5 {[%clk 0:02:41.4]}
5... Na6 {[%clk 0:02:43.3]} 6. c3 {[%clk 0:02:42]} 6... Be7 {[%clk 0:02:39.8]}
7. h3 {[%clk 0:02:40.3]} 7... O-O {[%clk 0:02:39.5]} 8. Nf3 {[%clk 0:02:39.6]}
8... Bd7 {[%clk 0:02:38.4]} 9. a4 {[%clk 0:02:37.8]} 9... Ne8 {[%clk 0:02:17.3]}
10. Bd3 {[%clk 0:02:29.7]} 10... Nac7 {[%clk 0:02:16]} 11. Nxc7 {[%clk
0:02:28.9]} 11... Nxc7 {[%clk 0:02:14.5]} 12. Ne5 {[%clk 0:02:29]} 12... Ne8
{[%clk 0:02:05.5]} 13. O-O {[%clk 0:02:26.3]} 13... f5 {[%clk 0:01:59.1]} 14. c4
{[%clk 0:02:22.4]} 14... Nf6 {[%clk 0:01:52.3]} 15. dxc5 {[%clk 0:02:12.4]}
15... Bxc5 {[%clk 0:01:49.4]} 16. cxd5 {[%clk 0:02:11.5]} 16... Nxd5 {[%clk
0:01:47.9]} 17. Bc4 {[%clk 0:02:09.1]} 17... Bc6 {[%clk 0:01:40.9]} 18. Nxc6
{[%clk 0:01:56.4]} 18... bxc6 {[%clk 0:01:41.8]} 19. Qe2 {[%clk 0:01:53.1]}
19... Qf6 {[%clk 0:01:32.3]} 20. Rac1 {[%clk 0:01:51.3]} 20... Bb6 {[%clk
0:01:24.5]} 21. Ba2 {[%clk 0:01:48.7]} 21... Rac8 {[%clk 0:01:23.1]} 22. Rfd1
{[%clk 0:01:47.3]} 22... Kh8 {[%clk 0:01:19.1]} 23. Kh1 {[%clk 0:01:36.8]} 23...
h6 {[%clk 0:01:16.2]} 24. Bh2 {[%clk 0:01:35.7]} 24... f4 {[%clk 0:01:10.9]} 25.
e4 {[%clk 0:01:34.9]} 25... Nb4 {[%clk 0:01:09.8]} 26. Bb3 {[%clk 0:01:32]}
26... e5 {[%clk 0:00:58.9]} 27. Rd7 {[%clk 0:01:26.7]} 27... Rcd8 {[%clk
0:00:48.7]} 28. Rcd1 {[%clk 0:01:26]} 28... Bd4 {[%clk 0:00:47.4]} 29. Rxd8
{[%clk 0:01:22.3]} 29... Rxd8 {[%clk 0:00:48.3]} 30. Qc4 {[%clk 0:01:20.7]}
30... a5 {[%clk 0:00:43.8]} 31. f3 {[%clk 0:01:18.4]} 31... Bxb2 {[%clk
0:00:39.4]} 32. Rb1 {[%clk 0:01:08.7]} 32... Bd4 {[%clk 0:00:38]} 33. Rd1 {[%clk
0:01:03.2]} 33... h5 {[%clk 0:00:37.9]} 34. Rf1 {[%clk 0:00:54.9]} 34... Kh7
{[%clk 0:00:37.7]} 35. g3 {[%clk 0:00:52]} 35... fxg3 {[%clk 0:00:31.4]} 36.
Bxg3 {[%clk 0:00:52.9]} 36... Be3 {[%clk 0:00:31.8]} 37. f4 {[%clk 0:00:46.9]}
37... exf4 {[%clk 0:00:29.5]} 38. Qe2 {[%clk 0:00:47.5]} 38... Qg5 {[%clk
0:00:27.2]} 39. Bh2 {[%clk 0:00:44.2]} 39... Rd2 {[%clk 0:00:26.1]} 40. Qf3
{[%clk 0:00:42.2]} 40... Nd3 {[%clk 0:00:25]} 41. e5 {[%clk 0:00:39.1]} 41...
Nf2+ {[%clk 0:00:17.5]} 42. Rxf2 {[%clk 0:00:39]} 42... Rxf2 {[%clk 0:00:18.4]}
43. Qe4+ {[%clk 0:00:38.9]} 43... Kh6 {[%clk 0:00:16.7]} 44. Qxc6+ {[%clk
0:00:37.9]} 44... g6 {[%clk 0:00:16.3]} 45. Bc4 {[%clk 0:00:34.9]} 45... Rxh2+
{[%clk 0:00:15.8]} 46. Kxh2 {[%clk 0:00:35.8]} 46... Qg1# {[%clk 0:00:16.2]} 0-1

[Event "Early-Titled-Tuesday-Blitz-March-19-2024"]
[Site "Chess.com"]
[Date "2024.03.19"]
[Round "11"]
[White "viktorskliarov"]
[Black "Rurep26"]
[Result "0-1"]
[WhiteElo "2608"]
[BlackElo "2740"]
[TimeControl "180+1"]
[EndTime "10:06:02 PDT"]
[Termination "Rurep26 won by resignation"]

1. e4 {[%clk 0:03:00.9]} 1... e6 {[%clk 0:02:54.6]} 2. d4 {[%clk 0:03:00.9]}
2... d5 {[%clk 0:02:55.5]} 3. e5 {[%clk 0:03:01.4]} 3... c5 {[%clk 0:02:55.1]}
4. c3 {[%clk 0:03:02.1]} 4... Nc6 {[%clk 0:02:55.6]} 5. Nf3 {[%clk 0:03:02.7]}
5... Qb6 {[%clk 0:02:55.9]} 6. a3 {[%clk 0:03:03.2]} 6... Nh6 {[%clk 0:02:56.1]}
7. b4 {[%clk 0:03:03.4]} 7... cxd4 {[%clk 0:02:56.4]} 8. Bxh6 {[%clk 0:03:04.2]}
8... gxh6 {[%clk 0:02:55.7]} 9. cxd4 {[%clk 0:03:04.8]} 9... Bg7 {[%clk
0:02:55.5]} 10. Nc3 {[%clk 0:03:02.3]} 10... Bd7 {[%clk 0:02:51.9]} 11. b5
{[%clk 0:02:57.4]} 11... Qa5 {[%clk 0:02:45.2]} 12. Qd2 {[%clk 0:02:51.4]} 12...
Ne7 {[%clk 0:02:45.5]} 13. Bd3 {[%clk 0:02:47.9]} 13... Rc8 {[%clk 0:02:45.6]}
14. Ne2 {[%clk 0:02:25]} 14... Qxd2+ {[%clk 0:02:36.7]} 15. Kxd2 {[%clk
0:02:24.6]} 15... f6 {[%clk 0:02:37.6]} 16. exf6 {[%clk 0:02:11.1]} 16... Bxf6
{[%clk 0:02:38.5]} 17. h4 {[%clk 0:01:55.1]} 17... O-O {[%clk 0:02:31.2]} 18. g3
{[%clk 0:01:42.3]} 18... Rc7 {[%clk 0:02:17.8]} 19. Nf4 {[%clk 0:01:37.8]} 19...
Nc8 {[%clk 0:02:18]} 20. Rhe1 {[%clk 0:01:32.7]} 20... Re8 {[%clk 0:02:07.1]}
21. Ne5 {[%clk 0:01:01.6]} 21... Bxe5 {[%clk 0:01:59.6]} 22. Rxe5 {[%clk
0:01:00.5]} 22... Nd6 {[%clk 0:02:00]} 23. Rc1 {[%clk 0:00:43.6]} 23... Rxc1
{[%clk 0:01:55.8]} 24. Kxc1 {[%clk 0:00:44.5]} 24... Bxb5 {[%clk 0:01:49.9]} 25.
Bc2 {[%clk 0:00:18]} 25... Bd7 {[%clk 0:01:44.8]} 26. Bb3 {[%clk 0:00:16.5]}
26... Nb5 {[%clk 0:01:41.6]} 27. Ne2 {[%clk 0:00:07.1]} 27... Nxa3 {[%clk
0:01:41.5]} 28. Kb2 {[%clk 0:00:07.1]} 28... Nb5 {[%clk 0:01:40.6]} 29. Ba4
{[%clk 0:00:07.1]} 29... Bc6 {[%clk 0:01:33.2]} 30. Bxb5 {[%clk 0:00:06]} 30...
Bxb5 {[%clk 0:01:33.2]} 31. Nf4 {[%clk 0:00:06.6]} 31... Bd7 {[%clk 0:01:33.6]}
32. Nh5 {[%clk 0:00:03.5]} 32... Kf7 {[%clk 0:01:33.9]} 33. Re3 {[%clk
0:00:03.4]} 33... Ke7 {[%clk 0:01:31.4]} 34. Rf3 {[%clk 0:00:03.4]} 34... Rc8
{[%clk 0:01:27.4]} 35. Rf6 {[%clk 0:00:02.6]} 35... Be8 {[%clk 0:01:25.5]} 36.
Rxh6 {[%clk 0:00:02.9]} 36... Bg6 {[%clk 0:01:15.5]} 37. Nf4 {[%clk 0:00:03.1]}
37... Kf6 {[%clk 0:01:16]} 38. h5 {[%clk 0:00:02.1]} 38... Kg7 {[%clk
0:01:10.9]} 39. Rxg6+ {[%clk 0:00:01.9]} 39... hxg6 {[%clk 0:01:10.7]} 40. hxg6
{[%clk 0:00:02.8]} 40... Kf6 {[%clk 0:01:10.4]} 41. Kb3 {[%clk 0:00:02.6]} 41...
a5 {[%clk 0:01:08.4]} 42. g4 {[%clk 0:00:02.8]} 42... b5 {[%clk 0:01:06.2]} 43.
f3 {[%clk 0:00:03.2]} 43... a4+ {[%clk 0:01:04]} 44. Kb4 {[%clk 0:00:03.4]}
44... Ra8 {[%clk 0:01:03.8]} 45. Ka3 {[%clk 0:00:03.1]} 45... b4+ {[%clk
0:01:03.2]} 46. Kxb4 {[%clk 0:00:03.7]} 46... a3 {[%clk 0:01:04.1]} 47. g7
{[%clk 0:00:04]} 47... a2 {[%clk 0:01:03.8]} 0-1

[Event "Early-Titled-Tuesday-Blitz-March-19-2024"]
[Site "Chess.com"]
[Date "2024.03.19"]
[Round "11"]
[White "manitodeplomo"]
[Black "Elnaz_Kaliakhmet"]
[Result "1-0"]
[WhiteElo "2648"]
[BlackElo "2532"]
[TimeControl "180+1"]
[EndTime "10:06:02 PDT"]
[Termination "manitodeplomo won by resignation"]

1. d4 {[%clk 0:03:00.9]} 1... Nf6 {[%clk 0:02:59.8]} 2. c4 {[%clk 0:03:00.3]}
2... e6 {[%clk 0:03:00.4]} 3. Nf3 {[%clk 0:03:00.3]} 3... Bb4+ {[%clk
0:02:59.6]} 4. Bd2 {[%clk 0:02:59.2]} 4... a5 {[%clk 0:02:59.8]} 5. Nc3 {[%clk
0:02:49.6]} 5... d6 {[%clk 0:02:55.7]} 6. Qc2 {[%clk 0:02:41.4]} 6... Nbd7
{[%clk 0:02:52.5]} 7. e4 {[%clk 0:02:40.2]} 7... e5 {[%clk 0:02:50.8]} 8. Be2
{[%clk 0:02:29.4]} 8... O-O {[%clk 0:02:51]} 9. O-O {[%clk 0:02:29]} 9... Re8
{[%clk 0:02:45.4]} 10. d5 {[%clk 0:02:06.1]} 10... Nc5 {[%clk 0:02:37.4]} 11.
Bd3 {[%clk 0:02:03.1]} 11... Bg4 {[%clk 0:02:27.6]} 12. Ne1 {[%clk 0:01:57.6]}
12... Bxc3 {[%clk 0:02:10.1]} 13. Bxc3 {[%clk 0:01:55.2]} 13... c6 {[%clk
0:02:05.8]} 14. f3 {[%clk 0:01:52.1]} 14... Bd7 {[%clk 0:02:03.7]} 15. Be2
{[%clk 0:01:48.5]} 15... cxd5 {[%clk 0:01:56.9]} 16. exd5 {[%clk 0:01:47]} 16...
b5 {[%clk 0:01:54.6]} 17. b3 {[%clk 0:01:42.1]} 17... bxc4 {[%clk 0:01:49]} 18.
bxc4 {[%clk 0:01:41.8]} 18... a4 {[%clk 0:01:42]} 19. Rb1 {[%clk 0:01:39.4]}
19... Qc8 {[%clk 0:01:39.3]} 20. Qd2 {[%clk 0:01:28.4]} 20... Rb8 {[%clk
0:01:35.3]} 21. Nc2 {[%clk 0:01:25.9]} 21... Bf5 {[%clk 0:01:32.3]} 22. Rxb8
{[%clk 0:01:24.4]} 22... Qxb8 {[%clk 0:01:32.1]} 23. Nb4 {[%clk 0:01:22.9]}
23... Qb6 {[%clk 0:01:29.1]} 24. Kh1 {[%clk 0:01:15.9]} 24... Rb8 {[%clk
0:01:23]} 25. Nc6 {[%clk 0:01:15.1]} 25... Re8 {[%clk 0:01:20.7]} 26. Ba5 {[%clk
0:01:12.6]} 26... Qa7 {[%clk 0:01:20.4]} 27. Qb4 {[%clk 0:01:08.8]} 27... e4
{[%clk 0:01:16.6]} 28. Bb6 {[%clk 0:01:04.7]} 28... Qd7 {[%clk 0:01:14.5]} 29.
Bxc5 {[%clk 0:01:04.1]} 29... dxc5 {[%clk 0:01:14.2]} 30. Qxc5 {[%clk 0:01:05]}
30... exf3 {[%clk 0:01:11.6]} 31. Bxf3 {[%clk 0:01:04.8]} 31... Bd3 {[%clk
0:01:09.3]} 32. Rd1 {[%clk 0:00:54.6]} 32... Ng4 {[%clk 0:00:56.9]} 33. Qd4
{[%clk 0:00:43.8]} 33... Be4 {[%clk 0:00:44.6]} 34. Bxe4 {[%clk 0:00:11.7]}
34... Rxe4 {[%clk 0:00:45.1]} 35. Qg1 {[%clk 0:00:11.7]} 35... Qf5 {[%clk
0:00:34.4]} 36. Rf1 {[%clk 0:00:09.7]} 36... Qe5 {[%clk 0:00:31.5]} 37. Nxe5
{[%clk 0:00:08.4]} 1-0

[Event "Early-Titled-Tuesday-Blitz-March-19-2024"]
[Site "Chess.com"]
[Date "2024.03.19"]
[Round "11"]
[White "KuzubovYuriy"]
[Black "JonaszBaum"]
[Result "0-1"]
[WhiteElo "2897"]
[BlackElo "2758"]
[TimeControl "180+1"]
[EndTime "10:06:05 PDT"]
[Termination "JonaszBaum won on time"]

1. d4 {[%clk 0:03:00.9]} 1... d5 {[%clk 0:02:59.4]} 2. c4 {[%clk 0:03:00.9]}
2... e6 {[%clk 0:02:59.1]} 3. Nc3 {[%clk 0:02:59.9]} 3... Bb4 {[%clk 0:02:57.9]}
4. a3 {[%clk 0:02:58.6]} 4... Bxc3+ {[%clk 0:02:57.2]} 5. bxc3 {[%clk
0:02:59.5]} 5... Nf6 {[%clk 0:02:57.5]} 6. cxd5 {[%clk 0:02:57.2]} 6... exd5
{[%clk 0:02:57.2]} 7. e3 {[%clk 0:02:57.8]} 7... c5 {[%clk 0:02:56.5]} 8. Bd3
{[%clk 0:02:58.4]} 8... Nc6 {[%clk 0:02:55.3]} 9. Ne2 {[%clk 0:02:58.5]} 9...
O-O {[%clk 0:02:53.9]} 10. f3 {[%clk 0:02:58.7]} 10... Re8 {[%clk 0:02:45.5]}
11. O-O {[%clk 0:02:58.6]} 11... h5 {[%clk 0:02:34.5]} 12. Ra2 {[%clk
0:02:58.3]} 12... Bd7 {[%clk 0:02:04.1]} 13. Nf4 {[%clk 0:02:45.6]} 13... Rc8
{[%clk 0:02:02.3]} 14. Kh1 {[%clk 0:02:40.1]} 14... Na5 {[%clk 0:01:56.7]} 15.
Raf2 {[%clk 0:02:03.3]} 15... cxd4 {[%clk 0:01:45.7]} 16. cxd4 {[%clk
0:02:03.7]} 16... Nc4 {[%clk 0:01:46.2]} 17. e4 {[%clk 0:01:57.7]} 17... dxe4
{[%clk 0:01:41.3]} 18. fxe4 {[%clk 0:01:58.6]} 18... Bg4 {[%clk 0:01:18]} 19.
Qb3 {[%clk 0:01:31.7]} 19... Qxd4 {[%clk 0:01:08.7]} 20. h3 {[%clk 0:01:12.7]}
20... Bd7 {[%clk 0:00:45.4]} 21. e5 {[%clk 0:00:37.5]} 21... Rxe5 {[%clk
0:00:34.7]} 22. Bxc4 {[%clk 0:00:27.5]} 22... Qxc4 {[%clk 0:00:33.5]} 23. Qxb7
{[%clk 0:00:28.1]} 23... a5 {[%clk 0:00:22]} 24. Bb2 {[%clk 0:00:17.1]} 24...
Rb5 {[%clk 0:00:22]} 25. Qa6 {[%clk 0:00:17.2]} 25... Ne4 {[%clk 0:00:10.6]} 26.
Rf3 {[%clk 0:00:15.9]} 26... Rxb2 {[%clk 0:00:10.1]} 27. Qxa5 {[%clk 0:00:05]}
27... Nd2 {[%clk 0:00:08.9]} 28. Nxh5 {[%clk 0:00:01.3]} 28... Nxf1 {[%clk
0:00:07.4]} 0-1

[Event "Early-Titled-Tuesday-Blitz-March-19-2024"]
[Site "Chess.com"]
[Date "2024.03.19"]
[Round "11"]
[White "nikitakhoroshev"]
[Black "Horokoskii"]
[Result "1-0"]
[WhiteElo "2642"]
[BlackElo "2175"]
[TimeControl "180+1"]
[EndTime "10:06:07 PDT"]
[Termination "nikitakhoroshev won by resignation"]

1. e4 {[%clk 0:03:00.9]} 1... c5 {[%clk 0:02:59.2]} 2. Nf3 {[%clk 0:02:59.3]}
2... d6 {[%clk 0:02:59.2]} 3. d4 {[%clk 0:02:58.9]} 3... cxd4 {[%clk 0:02:59.9]}
4. Nxd4 {[%clk 0:02:59]} 4... Nf6 {[%clk 0:03:00]} 5. Nc3 {[%clk 0:02:58.8]}
5... Nc6 {[%clk 0:03:00.1]} 6. f3 {[%clk 0:02:55]} 6... g6 {[%clk 0:02:57.8]} 7.
Be3 {[%clk 0:02:54.9]} 7... h5 {[%clk 0:02:57.8]} 8. Qd2 {[%clk 0:02:53.5]} 8...
Nxd4 {[%clk 0:02:55.5]} 9. Bxd4 {[%clk 0:02:50.4]} 9... Bh6 {[%clk 0:02:55.4]}
10. Be3 {[%clk 0:02:50.3]} 10... Bxe3 {[%clk 0:02:55.5]} 11. Qxe3 {[%clk
0:02:50.6]} 11... Be6 {[%clk 0:02:56.1]} 12. Bb5+ {[%clk 0:02:47.8]} 12... Kf8
{[%clk 0:02:55.8]} 13. O-O-O {[%clk 0:02:43.1]} 13... Qa5 {[%clk 0:02:52.3]} 14.
Ba4 {[%clk 0:02:35.4]} 14... Kg7 {[%clk 0:02:50.4]} 15. Bb3 {[%clk 0:02:33.6]}
15... Bxb3 {[%clk 0:02:42.4]} 16. cxb3 {[%clk 0:02:29.8]} 16... Rac8 {[%clk
0:02:40.6]} 17. Kb1 {[%clk 0:02:29.6]} 17... b5 {[%clk 0:02:36.7]} 18. Qd4
{[%clk 0:02:28.2]} 18... Kh7 {[%clk 0:02:27.6]} 19. e5 {[%clk 0:02:25.6]} 19...
dxe5 {[%clk 0:02:16.2]} 20. Qxe5 {[%clk 0:02:25.7]} 20... a6 {[%clk 0:01:43.5]}
21. Qxe7 {[%clk 0:02:24.8]} 21... Kg7 {[%clk 0:01:43]} 22. Qe5 {[%clk
0:02:15.7]} 22... Rhe8 {[%clk 0:01:42]} 23. Qg5 {[%clk 0:02:13]} 23... Qc7
{[%clk 0:01:33.7]} 24. Rhe1 {[%clk 0:02:09.9]} 24... Rxe1 {[%clk 0:01:28.1]} 25.
Rxe1 {[%clk 0:02:09.5]} 25... b4 {[%clk 0:01:28.6]} 26. Ne4 {[%clk 0:01:59.6]}
26... Nxe4 {[%clk 0:01:27.6]} 27. fxe4 {[%clk 0:01:58.7]} 27... Qc2+ {[%clk
0:01:21.7]} 28. Ka1 {[%clk 0:01:58.2]} 28... Re8 {[%clk 0:01:21.4]} 29. e5
{[%clk 0:01:54.1]} 29... Re6 {[%clk 0:01:15]} 30. Rc1 {[%clk 0:01:51.5]} 30...
Qe2 {[%clk 0:01:11.4]} 31. Qh4 {[%clk 0:01:45]} 31... Qxe5 {[%clk 0:01:07.7]}
32. Qxb4 {[%clk 0:01:44.7]} 32... Qxh2 {[%clk 0:00:57.4]} 33. Qc3+ {[%clk
0:01:42.6]} 33... Kh7 {[%clk 0:00:56]} 34. Rf1 {[%clk 0:01:40.5]} 34... Re7
{[%clk 0:00:48.4]} 35. Qf3 {[%clk 0:01:39.3]} 35... Qe5 {[%clk 0:00:40.1]} 36.
a4 {[%clk 0:01:38.9]} 36... Qe6 {[%clk 0:00:35.1]} 37. Qc3 {[%clk 0:01:36.1]}
37... Rb7 {[%clk 0:00:33]} 38. Ka2 {[%clk 0:01:35.8]} 38... Re7 {[%clk
0:00:25.9]} 39. Rf6 {[%clk 0:01:35.6]} 39... Qd5 {[%clk 0:00:09.8]} 40. g3
{[%clk 0:01:33.7]} 40... a5 {[%clk 0:00:09]} 41. Ra6 {[%clk 0:01:32.2]} 41...
Re5 {[%clk 0:00:07.3]} 42. Ra7 {[%clk 0:01:29.4]} 42... Kh6 {[%clk 0:00:06.9]}
43. Qc1+ {[%clk 0:01:28.2]} 43... Kg7 {[%clk 0:00:06.7]} 44. Qc3 {[%clk
0:01:27.8]} 44... Kh6 {[%clk 0:00:07.2]} 45. Rc7 {[%clk 0:01:26.8]} 45... Re4
{[%clk 0:00:07]} 46. Qc1+ {[%clk 0:01:25]} 46... Kg7 {[%clk 0:00:06]} 47. Ka3
{[%clk 0:01:24.9]} 47... Qd6+ {[%clk 0:00:05.6]} 48. Ka2 {[%clk 0:01:22.4]}
48... Qd5 {[%clk 0:00:05.9]} 49. Qc3+ {[%clk 0:01:17.3]} 49... Kh6 {[%clk
0:00:05.8]} 50. Rc4 {[%clk 0:01:17.3]} 50... Re6 {[%clk 0:00:04.2]} 51. Qc1+
{[%clk 0:01:16.4]} 51... Kg7 {[%clk 0:00:04]} 52. Rc5 {[%clk 0:01:17.3]} 52...
Qd7 {[%clk 0:00:03.5]} 53. Rxa5 {[%clk 0:01:17.4]} 53... Rc6 {[%clk 0:00:03.1]}
54. Qf4 {[%clk 0:01:15.8]} 54... Rf6 {[%clk 0:00:03]} 55. Qe5 {[%clk 0:01:15.9]}
55... Kh7 {[%clk 0:00:01.3]} 56. Qxf6 {[%clk 0:01:15.7]} 1-0